Cogmind - Beta 16.1 @@@ ROGUE MODE // 2026.02.23 @ 16:15:26 Player: Megaknight51 Result: Self-destructed Performance ------------- Evolutions (1) 500 Regions Visited (3) 600 Robots Destroyed (23) 115 Value Destroyed (431) 431 Prototype IDs (2) 40 Alien Tech Used (0) 0 Bonus (0) 0 TOTAL SCORE: 1686 Bonus ------- None Cogmind --------- Core Integrity 400/400 Matter 300/300 Energy 265/265 System Corruption 0% Temperature Cool (0) Movement Rolling (115) Ox1 Location -9/Materials Parts ------- > --- POWER (1) -------- Improved Ion Engine (fused) > --- PROPULSION (2) --- Compact Wheel Compact Wheel > --- UTILITY (4) ------ High-capacity Storage Unit Core Shielding > --- WEAPON (2) ------- EM Shotgun EM Shotgun > --- INVENTORY (20) --- Improved Ion Engine Improved Ion Engine Improved Ion Engine Compact Wheel Advanced Visual Processing Unit Experimental Sensor Array Core Shielding Core Shielding Heavy Armor Plating Shield Generator Shield Generator Hacking Suite Hacking Suite EM Shotgun Shock Rifle EMP Blaster EMP Blaster EMP Blaster Rocket Launcher Peak State ------------ > --- POWER ------------ Improved Ion Engine > --- PROPULSION ------- Compact Wheel Compact Wheel > --- UTILITY ---------- High-capacity Storage Unit Core Shielding > --- WEAPON ----------- EM Shotgun EM Shotgun > --- INVENTORY -------- Improved Ion Engine Improved Ion Engine Improved Ion Engine Compact Wheel Advanced Visual Processing Unit Experimental Sensor Array Core Shielding Core Shielding Heavy Armor Plating Shield Generator Shield Generator Hacking Suite Hacking Suite EM Shotgun EM Shotgun Shock Rifle EMP Blaster EMP Blaster EMP Blaster [Rating: 15] Favorites ----------- Power Improved Ion Engine Engine Improved Ion Engine Power Core Light Nuclear Core Propulsion Compact Wheel Wheel Compact Wheel Utility Core Shielding Storage High-capacity Storage Unit Protection Core Shielding Weapon EM Shotgun Energy Gun EM Shotgun Ballistic Gun Light Assault Rifle Build | -11 -10 -10 -9 ------- Run | Yrd Mat Min Mat Slots Evolved 2 | . . . 2 Power . | . . . . Propulsion . | . . . . Utility 2 | . . . 2 Weapon . | . . . . Parts Attached 18 | 6 10 2 . Power 3 | 1 2 . . Engine 2 | 1 1 . . Core 1 | . 1 . . Reactor . | . . . . Propulsion 3 | 2 1 . . Treads . | . . . . Leg . | . . . . Wheel 3 | 2 1 . . Hover . | . . . . Flight . | . . . . Utility 5 | 1 3 1 . Device . | . . . . Storage 3 | 1 1 1 . Processor . | . . . . Hackware . | . . . . Protection 2 | . 2 . . Artifact . | . . . . Weapon 7 | 2 4 1 . Energy Gun 4 | . 3 1 . Energy Cannon . | . . . . Ballistic Gun 3 | 2 1 . . Ballistic Cannon . | . . . . Launcher . | . . . . Special Weapon . | . . . . Impact Weapon . | . . . . Slashing Weapon . | . . . . Piercing Weapon . | . . . . Special Melee Weapon . | . . . . Unidentified Prototypes . | . . . . Parts Lost 6 | . 5 1 . Power 1 | . 1 . . Propulsion 1 | . 1 . . Utility 1 | . 1 . . Weapon 3 | . 2 1 . Highest Loss Streak 3 | . 3 1 . To Critical Strikes . | . . . . Average Backups 12 | 3 7 16 . Power 3 | 1 2 3 . Propulsion 1 | 1 2 1 . Utility 4 | . 2 6 . Weapon 3 | . . 5 . Tool/Special . | . . . . Unused Backups 22 | . 2 1 19 Power 6 | . 2 1 3 Propulsion 1 | . . . 1 Utility 9 | . . . 9 Weapon 6 | . . . 6 Tool/Special . | . . . . Average Slot Usage (%) 98 | . 96 100 . Engine 12 | . 10 14 . Core 1 | . 3 . . Wheel 27 | . 27 28 . Storage 14 | . 14 14 . Protection 13 | . 11 14 . Energy Gun 19 | . 5 28 . Ballistic Gun 8 | . 22 . . Peak Build Rating 15 | 6 13 15 . Average Rating 10 | 5 8 13 . On Entrance 8 | . 6 12 15 Avg Prop Armor Cover (%) . | . . . . Naked Turns . | . . . . Heaviest Build 54 | 12 34 54 . Greatest Support 32 | 26 32 32 . Greatest Overweight (x) 2 | . 2 1 . Average Overweight (x) . | . . 1 . Largest Inventory Capacity 20 | 8 15 20 . Average Capacity 15 | 7 11 19 . Most Carried 20 | 5 15 20 . Average Carried 13 | 3 7 17 . Final Capacity 20 | 8 15 20 20 Final Carried 20 | 5 14 20 20 Class Distribution -------------------- 100% | Mutant Dominant Class ---------------- Mutant | -10/Materials Mutant | -10/Mines Mutant | -9/Materials Resources | -11 -10 -10 -9 ----------- Run | Yrd Mat Min Mat Matter Collected 552 | 322 111 119 . Remotely . | . . . . Salvage Created 620 | 178 290 152 . Parts 54 | 10 28 16 . Haulers Intercepted . | . . . . Recyclers Shooed . | . . . . Parts Field Recycled . | . . . . Retrieved Matter . | . . . . Parts Self-Destructed . | . . . . Prevented . | . . . . Parts Restored . | . . . . Kills | -11 -10 -10 -9 ------- Run | Yrd Mat Min Mat Combat Hostiles Destroyed 18 | . 10 8 . Guns 16 | . 10 6 . AOE 2 | . . 2 . Classes Destroyed 6 | 2 3 1 . Tunneler 3 | 3 . . . Recycler 1 | 1 . . . Operator 1 | . 1 . . Swarmer 12 | . 6 6 . Grunt 4 | . 4 . . Demolisher 2 | . . 2 . Best Kill Streak 3 | 2 3 3 . Combat Bots Only 3 | . 3 3 . Max Kills in Single Turn 2 | 1 2 2 . Gunslinging 1 | . 1 1 . Exploded 2 | . . 2 . Melee . | . . . . Uniques/NPCs Destroyed . | . . . . Combat | -11 -10 -10 -9 -------- Run | Yrd Mat Min Mat Hostile Shots Fired 77 | . 56 21 . Missed 15 | . 10 5 . Hits 62 | . 46 16 . Projectile 62 | . 46 16 . Critical Strikes 2 | . 2 . . Damage Taken 771 | . 596 175 . Core 73 | . 38 35 . Absorbed by Shields . | . . . . Redirected to Shielding 6 | . . 6 . Core Remaining (%) 85 | 100 . 70 . Volleys Fired 82 | 31 40 11 . Largest 2 | 2 2 2 . Hottest 90 | 40 60 90 . Shots Fired 165 | 62 80 23 . Gun 165 | 62 80 23 . Cannon . | . . . . Launcher . | . . . . Special . | . . . . Kinetic 134 | 62 72 . . Thermal 8 | . 8 . . Explosive . | . . . . Electromagnetic 23 | . . 23 . Robot Hit Streak 14 | 6 13 14 . Robot Miss Streak 3 | 3 3 3 . Penetration Max . | . . . . Secondary Targets 3 | . 2 1 . Max Gunslinging Chain 1 | . 1 1 . Shots Hit Robots 101 | 32 52 17 . Core Hits 44 | 9 25 10 . Critical Kills . | . . . . Critical Parts Destroyed 1 | 1 . . . Critical Strikes 1 | 1 . . . Destroy 1 | 1 . . . Melee Attacks . | . . . . Impact . | . . . . Slashing . | . . . . Piercing . | . . . . Sneak Attacks . | . . . . Combat Hostiles . | . . . . Follow-up Attacks . | . . . . Damage Inflicted 989 | 285 436 268 . Guns 888 | 285 436 167 . Cannons . | . . . . Explosions 101 | . . 101 . Melee . | . . . . Ramming . | . . . . Kinetic 657 | 285 372 . . Thermal 165 | . 64 101 . Explosive . | . . . . Electromagnetic 167 | . . 167 . Impact . | . . . . Slashing . | . . . . Piercing . | . . . . Highest Corruption 3 | . 3 3 . Average Corruption 2 | . 1 3 . Corruption Purged . | . . . . Corruption Blocked . | . . . . Effects 28 | . . 28 . Message Errors 9 | . . 9 . Matter Fused 8 | . . 8 . Heat Flow Errors 2 | . . 2 . Energy Discharges 3 | . . 3 . Parts Fused 1 | . . 1 . Data Loss (minor) 2 | . . 2 . Data Loss (major) 1 | . . 1 . Misfires 1 | . . 1 . Alerts 1 | . . 1 . Overload Shots . | . . . . Overflow Damage . | . . . . Projectiles . | . . . . Explosions . | . . . . Melee . | . . . . Knockbacks . | . . . . Impact . | . . . . Kinetic . | . . . . Secondary . | . . . . Self-Inflicted Damage 53 | . . 53 . Shots 1 | . . 1 . Rammed . | . . . . Targets Rammed . | . . . . Kicked . | . . . . Crushed . | . . . . Highest Temperature 285 | . 126 285 . Average Temperature 50 | . 28 81 . Received Heat Transfer 249 | . 249 . . Effects 1 | . . 1 . Interference 1 | . . 1 . Siege Activations . | . . . . Martial Activations . | . . . . Shielding Activations . | . . . . Robots Disrupted . | . . . . Combat Hostiles . | . . . . Robots Corrupted . | . . . . Combat Hostiles . | . . . . Parts Fried . | . . . . Impact Corruptions . | . . . . Robots Melted . | . . . . Combat Hostiles . | . . . . Parts Melted . | . . . . Heat Transferred 200 | . 150 50 . Parts Sabotaged . | . . . . Parts Stolen . | . . . . Parts Stripped . | . . . . Power Chain Reactions 1 | . . 1 . Alert | -11 -10 -10 -9 ------- Run | Yrd Mat Min Mat Maximum Alert Level . | . . . . Low Security (%) 100 | 100 100 100 . Level 1 . | . . . . Level 2 . | . . . . Level 3 . | . . . . Level 4 . | . . . . Level 5 . | . . . . High Security . | . . . . Max Security . | . . . . Peak Influence 127 | 5 127 114 . Initial . | . . . . Average 24 | . 48 14 . Influence Increases 577 | 20 333 224 . Destroy 0b10 Robot/C 360 | . 200 160 . Destroy 0b10 Robot/NC 25 | 20 5 . . Destroy Leader 80 | . 50 30 . Successful Hack 18 | . 18 . . Destroy Structure 4 | . . 4 . Lose Combat Pursuer 90 | . 60 30 . Influence Decreases 577 | 20 333 224 . Time Decay 537 | 20 293 224 . Lost Part 40 | . 40 . . Squads Dispatched 2 | . 1 1 . Investigation 1 | . . 1 . Extermination . | . . . . Reinforcement 1 | . 1 . . Assault . | . . . . Garrison . | . . . . Intercept . | . . . . Searches Triggered . | . . . . Construction Impeded . | . . . . Haulers Reinforced . | . . . . Active Scanning Responses . | . . . . Cargo Convoy Interrupts . | . . . . Stealth | -11 -10 -10 -9 --------- Run | Yrd Mat Min Mat Distress Signals 4 | . 3 1 . Communications Jammed . | . . . . Distress Signals . | . . . . Times Spotted 28 | . 19 9 . Peak Tracking Total 4 | . 4 3 . Tactical Retreats 7 | . 5 2 . Traps | -11 -10 -10 -9 ------- Run | Yrd Mat Min Mat Traps Triggered 2 | . 2 . . Indirectly . | . . . . Trap Hack Attempts . | . . . . Triggered . | . . . . Disarmed . | . . . . Reprogrammed . | . . . . Reused . | . . . . Traps Extracted . | . . . . Installed . | . . . . Triggered . | . . . . Machines | -11 -10 -10 -9 ---------- Run | Yrd Mat Min Mat Machines Disabled . | . . . . Max in Single Turn . | . . . . Machines Repaired . | . . . . Machines Dismantled . | . . . . Machines Sabotaged . | . . . . Overloaded Fab Kills . | . . . . Hacking | -11 -10 -10 -9 --------- Run | Yrd Mat Min Mat Machines Accessed 7 | . 6 1 . Terminals 6 | . 6 . . Fabricators . | . . . . Repair Stations . | . . . . Recycling Units . | . . . . Scanalyzers . | . . . . Garrison Access . | . . . . Total Hacks 14 | . 13 1 . Successful 7 | . 6 1 . Failed 7 | . 7 . . Catastrophic . | . . . . Database Lockouts . | . . . . Manual 7 | . 7 . . Terminals 13 | . 13 . . Fabricators . | . . . . Repair Stations . | . . . . Recycling Units . | . . . . Scanalyzers . | . . . . Garrison Access . | . . . . Terminal Hacks 7 | . 6 1 . Robot Analysis 2 | . 2 . . Prototype ID Bank 1 | . 1 . . Open Door 1 | . . 1 . Registered Components 1 | . 1 . . Zone Layout 2 | . 2 . . Fabricator Hacks . | . . . . Repair Station Hacks . | . . . . Recycling Unit Hacks . | . . . . Scanalyzer . | . . . . Garrison Access Hacks . | . . . . Unauthorized Hacks . | . . . . Terminals . | . . . . Fabricators . | . . . . Repair Stations . | . . . . Recycling Units . | . . . . Scanalyzers . | . . . . Garrison Access . | . . . . Data Cores Recovered . | . . . . Used . | . . . . Hacking Detections 4 | . 4 . . Full Trace Events 1 | . 1 . . Feedback Events . | . . . . Feedback Blocked . | . . . . Robot Schematics Acquired . | . . . . Robots Built . | . . . . Authchips . | . . . . Time . | . . . . Total Robot Build Rating . | . . . . Part Schematics Acquired . | . . . . Parts Built . | . . . . Authchips . | . . . . Time . | . . . . Total Part Build Rating . | . . . . Part Studies Acquired . | . . . . Parts Repaired . | . . . . Time . | . . . . Parts Recycled . | . . . . Recycled Matter . | . . . . Retrieved Matter . | . . . . Retrieved Components . | . . . . Parts Scanalyzed . | . . . . Part Schematics Acquired . | . . . . Parts Damaged . | . . . . Bothacking | -11 -10 -10 -9 ------------ Run | Yrd Mat Min Mat Used RIF Installer . | . . . . Robots Hacked . | . . . . Non-combat . | . . . . Combat . | . . . . Robot Hacks Applied . | . . . . Relay Couplers Released . | . . . . Fabnet Peak Effective % . | . . . . Robots Rewired . | . . . . Allies Hacked . | . . . . Hacks Repelled . | . . . . Allies | -11 -10 -10 -9 -------- Run | Yrd Mat Min Mat Total Allies . | . . . . Largest Group . | . . . . Highest-Rated Group . | . . . . Highest-Rated Ally . | . . . . Total Orders . | . . . . Ally Attacks . | . . . . Total Damage . | . . . . Kills . | . . . . Allies Corrupted . | . . . . Allies Melted . | . . . . Intel | -11 -10 -10 -9 ------- Run | Yrd Mat Min Mat Active Infowar (turns) . | . . . . Robot Analysis Total 2 | . 2 . . Derelict Logs Recovered 1 | . . 1 . Drone Launches . | . . . . Drone Recoveries . | . . . . Exploration | -11 -10 -10 -9 ------------- Run | Yrd Mat Min Mat Turns Passed 2725 | 205 911 1609 . Spaces Moved 1579 | 125 716 738 . Core 5 | 5 . . . Treads . | . . . . Legs . | . . . . Wheels 1574 | 120 716 738 . Hover . | . . . . Flight . | . . . . Fastest Speed 50 | 50 90 115 . Average Speed 104 | 88 96 115 . Slowest Speed 130 | 90 130 115 . Overloaded Moves . | . . . . Propulsion Burnouts . | . . . . Robots Hopped . | . . . . Potential Cave-ins . | . . . . Cave-ins Triggered . | . . . . Exploration Rate (%) 64 | 5 89 98 . Regions Visited 3 Branch Regions 1 Pre-discovered Areas 1 | . . 1 . Known Exits Taken . | . . . . Unknown Exits Taken 3 | 1 1 1 . Scrap Searched 1 | . . 1 . Spaces Dug . | . . . . Terrain Destroyed 4 | . . 4 . Melee . | . . . . Projectile . | . . . . AOE 4 | . . 4 . Terrain Rammed . | . . . . Walls Destroyed . | . . . . Machines Disabled . | . . . . Actions | -11 -10 -10 -9 --------- Run | Yrd Mat Min Mat Total 2514 | 166 871 1477 . Wait 801 | . 83 718 . Move 1576 | 124 715 737 . Hop . | . . . . Pick Up 28 | 5 16 7 . Fast Attach 10 | 6 4 . . Attach 6 | . 5 1 . Detach . | . . . . Swap 3 | . 2 1 . Drop 8 | . 6 2 . Fire 82 | 31 40 11 . Melee . | . . . . Ram . | . . . . Kick . | . . . . Crush . | . . . . Escape Stasis . | . . . . Rewire . | . . . . Trap . | . . . . Miscellaneous . | . . . . Route ------- -11/Scrapyard -10/Materials (discovered 4 exits: [*Mat x2] / *Min x2) -10/Mines (discovered 2 exits: [*Mat x2]) -9/Materials History --------- Turn | Location | Event 20 | -11/Scrapyard | Discovered new exit (range 16) 206 | -11/Scrapyard | Entered Materials 262 | -10/Materials | Discovered new exit (range 14) 302 | -10/Materials | Build established: Mutant 376 | -10/Materials | Discovered new exit (range 8) 456 | -10/Materials | Discovered new exit (range 9) 563 | -10/Materials | Discovered new exit (range 16) 706 | -10/Materials | Derelicts attacked the area 882 | -10/Materials | Lost 3 parts (1p1u1w) 1117 | -10/Materials | Entered Mines 1118 | -10/Mines | Assembled infested the area 1329 | -10/Mines | Discovered new exit (range 14) 1503 | -10/Mines | Discovered new exit (range 5) 1508 | -10/Mines | Learned location of Storage (-8) 1811 | -10/Mines | Met a Derelict shopkeep closing up shop 1931 | -10/Mines | Found a damaged Exp. Sensor Array with a note attached 1936 | -10/Mines | Found Prototype Device 1980 | -10/Mines | Learned Materials machine intel 2594 | -10/Mines | Received a Rocket Launcher from a helpful Derelict 2726 | -10/Mines | Entered Materials 2726 | -9/Materials | Evolved 2 slots: Utility x2 2726 | -9/Materials | Self-destructed Last Messages --------------- laser when you travel the depths." 02590_ GV-2W4(g): "Pshh... whatever." 02591_ GV-2W4(g): "Everyone knows a good old rocket launcher goes a long way." 02592_ GV-2W4(g): "Need to get rid of a swarm? Done. Need a big hole in the wall? Done." 02593_ GV-2W4(g): "Need a small hole in the wall? Leave that to the mining laser wimps, I say!" 02594_ GV-2W4(g): "Would you like a rocket launcher? I know I would if I were you, so I'm going to lend you mine." 02594_ GV-2W4(g) slips back into the shadows. 02598_ Acquired Rocket Launcher. 02648_ System corrupted: Component data lost. 02651_ Acquired 3 matter. 02708_ D=TE0GENLWDO73 >|TPLV#